bitfinex-derivatives/quotes_SOLF0:USTF0_20250919
["timestamp","ask_amount","ask_price","bid_price","bid_amount"]
[1758275290016,4.54991667,242.73,242.66,0.03108057]
[1758275290416,1.83,242.72,242.66,0.03108057]
[1758275292021,6.37991667,242.72,242.66,0.03108057]
[1758275292223,4.54991667,242.7,242.66,0.03108057]
[1758275292416,333.06983335,242.79,242.66,0.03108057]
[1758275292417,4.54991667,242.68,242.66,0.03108057]
[1758275292617,6.37991667,242.67,242.66,0.03108057]
[1758275293323,6.79991667,242.67,242.66,0.03108057]
[1758275293524,2.25,242.67,242.66,0.00108057]
[1758275293725,2.25,242.67,242.41,311.58]
[1758275293726,0.42,242.67,242.41,311.58]
[1758275293925,1.79,242.6,242.43,7.2]
[1758275294226,1.79,242.58,242.43,7.2]
[1758275294425,14.96,242.57,242.43,7.2]
[1758275294630,17.52,242.56,242.43,7.2]
[1758275294825,17.54,242.58,242.49,7.2]
[1758275295028,17.54,242.61,242.49,7.2]
[1758275295326,17.58,242.63,242.49,7.2]
[1758275295527,17.58,242.62,242.49,7.2]
[1758275296029,1.82,242.61,242.49,7.2]
[1758275296325,1.82,242.61,242.48,3.7097]
[1758275296326,17.58,242.62,242.53,7.2267377]
[1758275302229,20.0,242.68,242.53,7.2267377]
[1758275302637,20.0,242.68,242.54,3.7088]
[1758275302831,20.0,242.68,242.55,7.2]
[1758275303136,20.0,242.68,242.59,7.2]
[1758275308742,1.83,242.67,242.58,0.03039717]
[1758275311633,1.83,242.67,242.58,7.15039717]
[1758275313040,1.83,242.67,242.58,0.03039717]
[1758275314142,1.81,242.67,242.58,0.03039717]
[1758275315847,6.37694804,242.67,242.58,0.03039717]
[1758275317951,4.56694804,242.64,242.58,0.03039717]
[1758275318249,1.81,242.63,242.58,0.03039717]
[1758275318449,6.37694804,242.63,242.58,0.03039717]
[1758275318949,1.81,242.61,242.58,0.03039717]
[1758275319647,312.12,242.6,242.39,0.67981149]
[1758275319853,4.56694804,242.54,242.39,0.67981149]
[1758275320042,31.96,242.53,242.4,7.12]
[1758275320442,1.78,242.52,242.4,7.12]
[1758275320944,4.56694804,242.58,242.4,7.12]
[1758275320945,0.03145772,242.48,242.4,7.12]
[1758275321148,1.78,242.59,242.35,23.26931149]
[1758275321349,1.78,242.59,242.44,0.02817541]
[1758275321350,2.83058568,242.58,242.44,0.02817541]
[1758275321648,7.07,242.56,242.33,57.7417]
[1758275321853,7.07,242.56,242.34,16.94]
[1758275321854,2.83058568,242.55,242.34,16.94]
[1758275322251,2.83058568,242.55,242.38,57.7299]
[1758275322452,2.83058568,242.54,242.42,0.02690264]
[1758275322652,32.08,242.59,242.42,0.02690264]
[1758275322955,2.83122961,242.58,242.42,3.7105]
[1758275323254,2.83122961,242.57,242.48,0.03126528]
[1758275323452,2.83122961,242.56,242.48,0.03126528]
[1758275323753,2.83122961,242.55,242.48,0.03126528]
[1758275323957,103.24,242.58,242.48,0.03126528]
[1758275324255,2.83158632,242.57,242.48,0.03126528]
[1758275324456,2.83158632,242.56,242.48,0.03126528]
[1758275324648,2.83158632,242.55,242.48,0.03126528]
[1758275324850,2.83158632,242.54,242.48,0.03126528]
[1758275325051,103.18,242.57,242.48,0.03126528]
[1758275325353,2.83180676,242.56,242.48,0.03126528]
[1758275325655,2.83180676,242.55,242.48,0.03126528]
[1758275325853,2.83180676,242.54,242.48,0.03126528]
[1758275326054,103.2,242.57,242.48,0.03126528]
[1758275326254,2.83160604,242.56,242.48,0.03126528]
[1758275326455,2.83160604,242.55,242.48,0.03126528]
[1758275326654,2.83160604,242.54,242.48,0.03126528]
[1758275326955,2.83160604,242.53,242.48,0.03126528]
[1758275327154,103.14,242.55,242.48,0.03126528]
[1758275327354,2.83039738,242.54,242.48,0.03126528]
[1758275327553,2.83039738,242.53,242.48,0.03126528]
[1758275327756,7.07,242.53,242.48,0.03126528]
[1758275328253,7.07,242.51,242.48,0.03126528]
[1758275328456,7.07,242.54,242.48,0.03126528]
[1758275328661,103.12,242.55,242.48,0.03126528]
[1758275328662,2.82988142,242.53,242.48,0.03126528]
[1758275328956,7.07,242.51,242.48,0.03126528]
[1758275329260,2.82988142,242.5,242.48,0.01126528]
[1758275329456,9.89988142,242.49,242.48,0.01126528]
[1758275333662,10.31988142,242.49,242.48,0.01126528]
[1758275334062,10.31988142,242.49,242.29,23.19622509]
[1758275334063,7.07,242.47,242.29,23.19622509]
[1758275334259,43.63682946,242.46,242.29,23.19622509]
[1758275334455,7.07,242.44,242.29,23.19622509]
[1758275334656,60.50988142,242.43,242.3,7.12]
[1758275334960,2.82988142,242.42,242.3,7.12]
[1758275335157,2.82988142,242.41,242.3,7.12]
[1758275335358,57.68,242.43,242.3,7.12]
[1758275335563,2.82230336,242.42,242.3,7.12]
[1758275335764,7.07,242.44,242.3,7.12]
[1758275335966,70.88,242.42,242.3,7.12]
[1758275337265,7.07,242.44,242.3,7.12]
[1758275337665,91.96,242.43,242.3,7.12]
[1758275338166,0.71825143,242.43,242.3,7.12]
[1758275338569,103.6,242.48,242.3,7.12]
[1758275338771,103.6,242.48,242.36,6.65]
[1758275339371,6.8,242.53,242.38,6.65]
[1758275339573,106.43855023,242.52,242.38,6.65]
[1758275339764,3.53654973,242.51,242.38,6.65]
[1758275340066,0.7179995,242.51,242.38,6.65]
[1758275340467,0.7179995,242.51,242.39,3.7111]
[1758275340772,0.7179995,242.51,242.4,6.65]
[1758275342172,103.62,242.52,242.4,6.65]
[1758275342471,103.58,242.58,242.42,6.65]
[1758275342772,0.02600441,242.48,242.42,6.65]
[1758275343972,0.02600441,242.48,242.33,6.65]
[1758275344372,51.72,242.49,242.33,6.65]
[1758275344776,0.02618372,242.43,242.33,6.65]
[1758275344975,0.02618372,242.43,242.38,3.7112]
[1758275345176,0.02618372,242.43,242.39,6.65]
[1758275345579,0.02618372,242.43,242.4,4.1309]
[1758275345872,0.02618372,242.43,242.4,3.7109]
[1758275346077,0.02618372,242.43,242.42,6.65]
[1758275346775,74.23784399,242.57,242.45,6.65]
[1758275346979,2.81755196,242.56,242.32,57.7441]
[1758275347275,6.8,242.54,242.35,3.7116]
[1758275347481,6.8,242.52,242.36,6.65]
[1758275347680,2.81755196,242.51,242.36,6.65]
[1758275347977,6.8,242.49,242.27,6.65]
[1758275348278,6.8,242.49,242.19,57.7753]
[1758275348279,6.8,242.47,242.3,6.65]
[1758275348479,2.8172729,242.46,242.3,6.65]
[1758275348783,2.8172729,242.45,242.3,6.65]
[1758275348979,6.8,242.47,242.3,6.65]
[1758275349177,2.81609532,242.46,242.3,6.65]
[1758275349375,6.8,242.47,242.3,6.65]
[1758275349577,2.81631177,242.46,242.3,6.65]
[1758275349774,6.8,242.47,242.3,6.65]
[1758275350277,6.8,242.47,242.33,3.712]
[1758275350583,6.8,242.47,242.36,0.03050152]
[1758275350776,6.8,242.47,242.37,6.65]
[1758275351085,96.22,242.49,242.37,6.65]
[1758275351278,173.59288262,242.52,242.37,6.65]
[1758275351881,68.01288262,242.52,242.39,6.65]
[1758275352080,173.57288262,242.52,242.39,6.65]
[1758275352573,112.36,242.52,242.39,6.65]
[1758275352776,112.36,242.52,242.4,3.7109]
[1758275352982,112.36,242.52,242.41,6.65]
[1758275353178,7.51784399,242.57,242.41,6.65]
[1758275353380,108.36539871,242.56,242.42,3.7106]
[1758275353583,2.82539871,242.55,242.43,6.65]
[1758275353784,57.53784399,242.57,242.43,6.65]
[1758275353984,2.82555427,242.56,242.43,6.65]
[1758275354285,2.82555427,242.55,242.43,6.65]
[1758275354582,57.53784399,242.57,242.43,6.65]
[1758275354783,2.82630709,242.56,242.43,6.65]
[1758275354978,2.82630709,242.55,242.47,0.02656078]
[1758275355178,57.53784399,242.57,242.47,0.02656078]
[1758275355384,2.82713937,242.56,242.47,0.02656078]
[1758275355685,2.82713937,242.55,242.47,0.02656078]
[1758275355886,57.53784399,242.57,242.47,0.02656078]
[1758275356179,2.82703932,242.56,242.47,0.02656078]
[1758275356386,2.82703932,242.55,242.47,0.02656078]
[1758275356685,57.53784399,242.57,242.47,0.02656078]
[1758275356883,6.8,242.55,242.47,0.02656078]
[1758275357086,6.8,242.53,242.47,0.02656078]
[1758275357288,6.8,242.51,242.47,0.02656078]
[1758275357581,6.8,242.49,242.47,0.02656078]
[1758275357885,6.8,242.48,242.47,0.02656078]
[1758275359187,9.62906609,242.48,242.47,0.02656078]
[1758275359589,6.8,242.48,242.47,0.02656078]
[1758275360284,9.62969485,242.48,242.3,6.65]
[1758275360587,2.82969485,242.47,242.3,6.65]
[1758275361088,2.82969485,242.47,242.29,80.94732509]
[1758275361089,108.42969485,242.47,242.35,10.3617]
[1758275361283,2.82969485,242.46,242.35,10.3617]
[1758275361588,0.03094502,242.43,242.35,10.3617]
[1758275362178,0.03094502,242.43,242.35,6.65]
[1758275362578,0.03094502,242.43,242.3,6.65]
[1758275362579,9.62159423,242.42,242.3,6.65]
[1758275362786,2.82159423,242.41,242.3,6.65]
[1758275362991,6.8,242.42,242.3,6.65]
[1758275363191,2.82124115,242.41,242.3,6.65]
[1758275363490,0.02753119,242.38,242.3,6.65]
[1758275368493,0.02753119,242.38,242.31,6.71]
[1758275368799,0.02753119,242.38,242.3,6.71]
[1758275369591,0.02753119,242.38,242.33,3.7119]
[1758275369785,0.02753119,242.38,242.29,23.19622509]
[1758275369786,0.02753119,242.38,242.3,6.71]
[1758275370384,0.02753119,242.38,242.29,23.19622509]
[1758275370591,0.02753119,242.38,242.3,6.71]
[1758275370990,0.02753119,242.38,242.34,3.7118]
[1758275371194,0.02753119,242.38,242.35,6.71]
[1758275371387,0.02753119,242.38,242.34,3.7118]
[1758275372093,0.02753119,242.38,242.37,6.71]
[1758275372596,0.02753119,242.38,242.37,7.13]
[1758275373696,6.92,242.51,242.38,6.71]
[1758275373893,51.72,242.56,242.38,6.71]
[1758275374092,2.82460075,242.55,242.38,6.71]
[1758275374298,2.82460075,242.54,242.38,6.71]
[1758275374600,2.82460075,242.53,242.38,6.71]
[1758275374801,51.72,242.56,242.44,6.71]
[1758275374997,2.82447881,242.55,242.45,3.59250017]
[1758275375195,6.92,242.56,242.46,3.59250017]
[1758275375498,6.92,242.56,242.48,0.03025909]
[1758275375701,6.92,242.56,242.49,3.59250017]
[1758275375902,6.92,242.56,242.5,3.59250017]
[1758275376104,0.71784399,242.57,242.51,3.59250017]
[1758275376398,0.71784399,242.57,242.52,3.59250017]
[1758275376599,6.92,242.55,242.48,0.03025909]
[1758275378196,0.71784399,242.57,242.48,6.74025909]
[1758275378701,6.92,242.59,242.48,6.74025909]
[1758275378892,2.8221868,242.58,242.48,6.74025909]
[1758275379095,6.92,242.59,242.48,6.74025909]
[1758275379296,2.82223192,242.58,242.48,6.74025909]
[1758275379595,0.71778477,242.58,242.48,6.74025909]
[1758275381098,6.92,242.59,242.48,6.74025909]
[1758275383098,0.0276369,242.56,242.48,6.74025909]
[1758275388806,0.0276369,242.56,242.48,0.03025909]
[1758275389109,104.7276369,242.63,242.49,6.71]
[1758275389903,104.7276369,242.63,242.53,6.71]
[1758275390406,104.7276369,242.63,242.56,0.03072297]
[1758275391699,6.92,242.62,242.56,0.03072297]
[1758275400824,104.5,242.61,242.56,0.03072297]
[1758275401116,6.75,242.6,242.56,0.03072297]
[1758275401317,104.46,242.61,242.56,0.03072297]
[1758275402320,6.75,242.6,242.56,0.03072297]
[1758275402516,104.46,242.61,242.56,0.03072297]
[1758275403121,6.75,242.6,242.56,0.03072297]
[1758275403420,104.46,242.61,242.56,0.03072297]
[1758275404016,6.75,242.6,242.56,0.03072297]
[1758275404214,104.46,242.61,242.56,0.03072297]
[1758275404414,6.75,242.6,242.56,0.03072297]
[1758275404817,2.80385636,242.59,242.56,0.03072297]
[1758275405020,6.75,242.57,242.56,0.03072297]
[1758275405424,9.55366415,242.57,242.38,6.51]
[1758275405731,6.75,242.55,242.38,6.51]
[1758275406028,6.75,242.53,242.4,6.51]
[1758275406221,20.06,242.52,242.4,6.51]
[1758275406418,6.75,242.51,242.4,6.51]
[1758275409631,6.75,242.51,242.34,6.51]
[1758275409830,2.80646693,242.5,242.34,6.51]
[1758275410130,6.75,242.51,242.34,6.51]
[1758275410330,2.81331226,242.5,242.34,6.51]
[1758275410533,54.98,242.5,242.34,6.51]
[1758275411628,54.98,242.5,242.39,6.51]
[1758275412330,104.28,242.52,242.39,6.51]
[1758275412538,104.28,242.53,242.39,6.51]
[1758275413033,6.75,242.52,242.42,6.51]
[1758275413936,6.75,242.52,242.33,6.51]
[1758275414137,6.75,242.5,242.33,6.51]
[1758275414433,6.75,242.5,242.37,6.51]
[1758275418039,6.75,242.5,242.32,57.7441]
[1758275418040,6.75,242.5,242.4,6.51]
[1758275426251,6.75,242.48,242.32,6.51]
[1758275427644,6.75,242.46,242.32,6.51]
[1758275434364,6.75,242.46,242.37,7.16]
[1758275435059,72.86,242.53,242.39,7.16]
[1758275435255,9.40879953,242.52,242.39,7.16]
[1758275435460,72.86,242.53,242.39,7.16]
[1758275435461,6.6,242.5,242.39,7.16]
[1758275435859,2.8083596,242.49,242.39,7.16]
[1758275436065,6.6,242.5,242.39,7.16]
[1758275436260,6.6,242.48,242.39,7.16]
[1758275437361,2.80943321,242.47,242.39,7.16]
[1758275437562,6.6,242.48,242.39,7.16]
[1758275437762,2.80943221,242.47,242.39,7.16]
[1758275437960,6.6,242.48,242.39,7.16]
[1758275438760,4.56694804,242.58,242.39,7.16]
[1758275438966,60.89049232,242.57,242.39,7.16]
[1758275439168,6.6,242.55,242.39,7.16]
[1758275439367,2.81049232,242.54,242.39,7.16]
[1758275439867,2.81049232,242.54,242.39,10.8711]
[1758275440664,6.6,242.53,242.39,7.16]
[1758275440861,6.6,242.51,242.39,7.16]
[1758275441069,6.6,242.49,242.39,7.16]
[1758275441260,2.81049232,242.48,242.39,7.16]
[1758275441566,6.6,242.49,242.39,7.16]
[1758275444265,61.09939835,242.59,242.39,7.16]
[1758275444466,6.6,242.58,242.39,7.16]
[1758275444769,81.94,242.58,242.39,7.16]
[1758275445272,6.6,242.58,242.43,7.16]
[1758275445868,6.6,242.58,242.46,7.16]
[1758275446463,6.6,242.58,242.47,7.16]
[1758275452876,6.6,242.58,242.47,10.8698]
[1758275453081,6.6,242.63,242.48,7.16]
[1758275453577,110.18,242.63,242.48,7.16]
[1758275454176,6.6,242.62,242.48,7.16]
[1758275456780,26.16,242.62,242.48,7.16]
[1758275457177,6.6,242.62,242.48,7.16]
[1758275457783,6.6,242.62,242.53,7.15]
[1758275458281,6.75,242.65,242.53,7.15]
[1758275458885,6.75,242.65,242.53,10.8589]
[1758275459390,6.75,242.65,242.54,6.67]
[1758275460986,6.75,242.65,242.44,6.67]
[1758275461289,11.31694804,242.65,242.44,6.67]
[1758275461690,4.56694804,242.64,242.44,6.67]
[1758275461890,6.75,242.63,242.44,6.67]
[1758275463592,6.75,242.61,242.44,10.3802]
[1758275463787,6.75,242.61,242.44,6.67]
[1758275464291,11.31694804,242.61,242.44,6.67]
[1758275464484,6.75,242.58,242.38,6.67]
[1758275465492,6.75,242.58,242.4,3.7109]
[1758275465693,6.75,242.56,242.41,6.67]
[1758275469087,11.31694804,242.56,242.3,6.67]
[1758275469291,4.56694804,242.55,242.3,6.67]
[1758275469492,6.75,242.54,242.32,3.712]
[1758275469693,6.75,242.52,242.29,29.86622509]
[1758275469895,4.56694804,242.51,242.3,6.67]
[1758275470101,6.75,242.5,242.3,6.67]
[1758275470291,6.75,242.48,242.3,6.67]
[1758275471102,7.0,242.49,242.3,6.67]
[1758275471103,6.75,242.46,242.3,6.67]
[1758275471297,20.42,242.45,242.3,6.67]
[1758275471503,26.82,242.44,242.3,6.67]
[1758275471896,6.75,242.46,242.3,6.67]
[1758275472093,7.4,242.45,242.3,6.67]
[1758275472397,14.44,242.44,242.3,6.67]
[1758275472799,6.75,242.46,242.3,6.67]
[1758275473001,3.7109,242.41,242.3,6.67]
[1758275473901,3.7111,242.39,242.3,6.67]
[1758275477503,3.7107,242.42,242.3,6.67]
[1758275478407,3.7107,242.42,242.31,6.67]
[1758275479605,3.7109,242.4,242.31,6.67]
[1758275480207,6.75,242.41,242.31,6.67]
[1758275483209,6.75,242.46,242.31,6.67]
[1758275483713,6.75,242.46,242.33,6.67]
[1758275488413,88.18,242.45,242.33,6.67]
[1758275489614,7.05,242.44,242.33,6.67]
[1758275492111,103.38,242.45,242.29,23.19622509]
[1758275492307,7.05,242.44,242.29,23.19622509]
[1758275492515,103.38,242.45,242.29,23.19622509]
[1758275492911,7.05,242.44,242.29,23.19622509]
[1758275493214,103.36,242.43,242.3,6.71]
[1758275493417,7.05,242.42,242.3,6.71]
[1758275493616,103.36,242.41,242.3,6.71]
[1758275494317,7.05,242.4,242.3,6.71]
[1758275496216,7.05,242.49,242.3,6.71]
[1758275496617,32.86,242.48,242.3,6.71]
[1758275497217,32.86,242.48,242.33,3.712]
[1758275497418,32.86,242.48,242.34,6.71]
[1758275498615,7.05,242.49,242.34,6.71]
[1758275498816,46.52,242.48,242.34,6.71]
[1758275499419,97.97,242.49,242.34,6.71]
[1758275500321,97.97,242.49,242.36,6.71]
[1758275501022,7.05,242.49,242.36,6.71]
[1758275501425,39.63,242.53,242.4,6.71]
[1758275503424,39.63,242.53,242.41,6.71]
[1758275504215,7.05,242.53,242.41,6.71]
[1758275505115,110.19,242.53,242.41,6.71]
[1758275505319,110.17,242.53,242.41,6.71]
[1758275506229,7.05,242.53,242.41,6.71]
[1758275506524,110.15,242.53,242.41,6.71]
[1758275507229,110.15,242.53,242.41,10.4207]
[1758275507429,110.15,242.53,242.42,6.71]
[1758275507630,7.05,242.53,242.42,6.71]
[1758275511034,7.05,242.53,242.43,6.71]
[1758275512334,311.96,242.56,242.43,6.71]
[1758275512535,414.84,242.56,242.43,6.71]
[1758275512737,102.88,242.56,242.45,6.71]
[1758275512938,102.88,242.56,242.47,6.71]
[1758275513135,102.88,242.56,242.48,3.61375252]
[1758275513437,102.88,242.56,242.47,6.71]
[1758275513438,102.88,242.56,242.49,3.61375252]
[1758275513738,102.88,242.56,242.5,3.61375252]
[1758275514034,109.93,242.56,242.51,3.61375252]
[1758275514240,102.86,242.61,242.52,10.32375252]
[1758275514535,7.05,242.62,242.53,3.61375252]
[1758275514732,7.05,242.62,242.55,6.71]
[1758275514931,0.71761455,242.66,242.56,3.61375252]
[1758275515136,0.71761455,242.66,242.55,6.71]
[1758275515137,109.95,242.67,242.57,3.61375252]
[1758275515337,109.95,242.67,242.58,3.61375252]
[1758275515537,109.95,242.67,242.59,3.61375252]
[1758275515742,7.05,242.67,242.58,6.71]
[1758275515930,7.05,242.67,242.59,3.60578263]
[1758275516131,7.05,242.67,242.6,3.60578263]
[1758275516330,7.05,242.67,242.61,3.60578263]
[1758275516533,109.93,242.68,242.62,3.60578263]
[1758275516731,102.88,242.68,242.63,3.60578263]
[1758275516938,7.05,242.67,242.64,3.60578263]
[1758275517142,102.84,242.68,242.65,3.60578263]
[1758275517439,7.05,242.68,242.66,3.60578263]
[1758275517639,7.05,242.68,242.67,3.60578263]
[1758275520150,311.84,242.7,242.67,3.60578263]
[1758275520351,6.81,242.69,242.68,3.60578263]
[1758275521847,54.19036469,242.72,242.68,3.60578263]
[1758275521848,102.7,242.72,242.68,3.60578263]
[1758275522043,6.81,242.75,242.69,3.60578263]
[1758275522249,109.51,242.74,242.7,3.60578263]
[1758275522452,109.51,242.74,242.66,7.01]
[1758275522453,109.51,242.74,242.71,3.60578263]
[1758275522647,109.51,242.74,242.72,3.60578263]
[1758275522847,109.51,242.74,242.66,7.01]
[1758275523048,6.81,242.74,242.67,3.60429446]
[1758275523351,6.81,242.74,242.68,3.60429446]
[1758275523546,6.81,242.74,242.69,3.60429446]
[1758275523747,29.36,242.76,242.7,10.61429446]
[1758275523944,29.36,242.76,242.71,10.61429446]
[1758275524147,29.36,242.76,242.72,3.60429446]
[1758275524352,102.64,242.79,242.73,3.5980169]
[1758275524651,102.64,242.8,242.74,3.5980169]
[1758275524852,6.81,242.79,242.75,3.59772245]
[1758275525048,0.71710438,242.83,242.72,7.01]
[1758275525343,6.81,242.85,242.73,3.59767095]
[1758275525650,7.48,242.84,242.74,3.59767095]
[1758275525946,7.48,242.84,242.75,3.59767095]
[1758275526151,6.81,242.83,242.76,3.59767095]
[1758275526343,6.81,242.81,242.76,0.03032482]
[1758275526747,102.74,242.82,242.76,0.03032482]
[1758275526748,6.81,242.79,242.76,0.03032482]
[1758275527248,6.81,242.77,242.76,0.03032482]
[1758275527746,7.23,242.77,242.76,0.03032482]
[1758275527949,109.59,242.77,242.76,0.03032482]
[1758275528351,109.61,242.77,242.76,0.03032482]
[1758275529047,6.81,242.77,242.76,0.03032482]
[1758275529247,102.78,242.8,242.76,0.03032482]
[1758275529448,17.56,242.82,242.76,0.03032482]
[1758275530457,6.81,242.83,242.76,0.03032482]
[1758275530653,102.78,242.82,242.76,0.03032482]
[1758275531054,109.59,242.82,242.76,0.03032482]
[1758275531557,6.81,242.82,242.76,0.03032482]
[1758275531757,6.81,242.82,242.77,10.59345598]
[1758275531955,6.81,242.82,242.77,7.01]
[1758275532151,6.81,242.84,242.76,0.03032482]
[1758275532351,6.81,242.84,242.77,3.58361086]
[1758275532558,6.81,242.84,242.76,0.03032482]
[1758275532754,6.81,242.84,242.77,3.58200219]
[1758275533052,6.81,242.84,242.76,0.03032482]
[1758275535152,102.74,242.83,242.76,0.03032482]
[1758275536156,6.81,242.82,242.76,0.03032482]
[1758275538762,102.7,242.81,242.76,0.03032482]
[1758275538962,6.81,242.8,242.76,0.03032482]
[1758275539160,102.7,242.81,242.76,0.03032482]
[1758275539463,6.81,242.8,242.76,0.03032482]
[1758275539959,102.7,242.81,242.76,0.03032482]
[1758275540457,6.81,242.8,242.76,0.03032482]
[1758275541363,65.53,242.8,242.76,0.03032482]
[1758275541562,6.81,242.79,242.76,0.03032482]
[1758275542657,6.81,242.79,242.77,3.58870514]
[1758275542964,6.81,242.79,242.76,0.03032482]
[1758275543265,6.81,242.79,242.77,3.58866809]
[1758275543467,6.81,242.79,242.76,0.03032482]
[1758275543659,6.81,242.79,242.77,3.58996119]
[1758275543967,6.81,242.79,242.76,0.03032482]
[1758275544261,58.72,242.8,242.77,3.58996119]
[1758275544462,58.72,242.8,242.78,3.58996119]
[1758275544764,58.72,242.8,242.76,0.03032482]
[1758275544960,58.72,242.8,242.77,3.59148307]
[1758275545161,58.72,242.8,242.78,3.59148307]
[1758275545360,58.72,242.8,242.79,3.59148307]
[1758275545563,65.53,242.8,242.79,3.59148307]
[1758275546362,58.72,242.8,242.79,3.59148307]
[1758275547961,109.27,242.86,242.79,3.59148307]
[1758275548264,6.81,242.86,242.8,3.59148307]
[1758275548463,6.81,242.86,242.81,3.59148307]
[1758275548664,6.81,242.86,242.82,3.59148307]
[1758275548854,0.71698619,242.87,242.83,3.59148307]
[1758275549055,0.71698619,242.87,242.84,3.59148307]
[1758275549256,6.88,242.86,242.77,6.71]
[1758275549454,6.88,242.86,242.83,0.02950963]
[1758275549663,6.88,242.86,242.84,3.59135428]
[1758275549867,6.88,242.86,242.85,3.59135428]
[1758275553967,6.88,242.88,242.85,3.59135428]
[1758275554168,6.88,242.88,242.86,3.59135428]
[1758275554368,6.88,242.88,242.87,3.59135428]
[1758275554568,6.88,242.9,242.87,3.59135428]
[1758275554871,6.88,242.9,242.88,3.59135428]
[1758275555067,6.88,242.9,242.83,0.02950963]
[1758275555270,6.88,242.9,242.84,3.57251452]
[1758275555471,109.26,242.91,242.85,3.57251452]
[1758275555666,109.26,242.91,242.86,3.57251452]
[1758275555873,109.26,242.91,242.87,3.57251452]
[1758275556177,6.88,242.9,242.88,3.57251452]
[1758275556372,6.88,242.9,242.89,3.57251452]
[1758275556874,109.26,242.92,242.89,3.57251452]
[1758275557068,109.26,242.92,242.9,3.57251452]
[1758275557267,109.26,242.92,242.91,3.57251452]
[1758275557467,6.88,242.92,242.91,3.57251452]
[1758275557867,102.38,242.93,242.91,3.57251452]
[1758275558169,102.38,242.93,242.92,3.57251452]
[1758275558562,109.26,242.93,242.92,3.57251452]
[1758275559068,110.39669825,242.93,242.92,3.57251452]
[1758275559269,109.97669825,242.93,242.92,3.57251452]
[1758275559980,109.95669825,242.93,242.92,3.57251452]
[1758275560173,109.95669825,242.93,242.87,0.02958707]
[1758275560467,102.36,242.92,242.87,0.02958707]
[1758275560673,6.88,242.91,242.87,0.02958707]
[1758275561071,102.36,242.92,242.87,0.02958707]
[1758275561468,6.88,242.91,242.87,0.02958707]
[1758275561671,102.36,242.9,242.87,0.02958707]
[1758275561874,6.88,242.89,242.87,0.02958707]
[1758275562168,102.36,242.9,242.87,0.02958707]
[1758275562967,6.88,242.89,242.87,0.02958707]
[1758275563575,102.36,242.9,242.87,0.02958707]
[1758275563772,102.36,242.89,242.87,0.02958707]
[1758275563977,6.88,242.88,242.87,0.02958707]
[1758275564681,102.36,242.88,242.87,0.02958707]
[1758275567878,0.71669825,242.93,242.87,0.02958707]
[1758275568073,102.36,242.9,242.87,0.02958707]
[1758275568273,6.88,242.89,242.87,0.02958707]
[1758275568777,102.36,242.9,242.87,0.02958707]
[1758275568977,6.88,242.89,242.87,0.02958707]
[1758275570385,0.71669825,242.93,242.87,0.02958707]
[1758275570577,102.34,242.89,242.87,6.73958707]
[1758275571382,102.34,242.89,242.87,0.02958707]
[1758275574180,102.34,242.89,242.88,6.71]
[1758275574578,6.88,242.94,242.88,6.71]
[1758275574783,102.34,242.93,242.88,6.71]
[1758275574980,109.22,242.93,242.87,0.02958707]